Workbook

Sheet 表1-1 政府债务限额及余额预算情况表
A1: 表1-1
A2: 抚顺市2022年地方政府债务限额及余额情况表
G3: 单位：亿元
A4: 地 区 | B4: 2022年债务限额 | E4: 2022年债务余额预计执行数
C5: 一般债务 | D5: 专项债务 | F5: 一般债务 | G5: 专项债务
A6: 公 式 | B6: A=B+C | C6: B | D6: C | E6: D=E+F | F6: E | G6: F
A7: 抚顺市 | B7: =SUM(C7:D7) -> 437.82 | C7: =SUM(C8:C16) -> 359.18 | D7: 78.64 | E7: =F7+G7 -> 415.61 | F7: 338.75 | G7: 76.86
A8: 抚顺市本级 | B8: =SUM(C8:D8) -> 185.86 | C8: 162.54 | D8: 23.32 | E8: =F8+G8 -> 179.37 | F8: =156.41-0.09 -> 156.32 | G8: 23.05
A9: 经济开发区 | B9: 139.59 | C9: 119.62 | D9: 19.97 | E9: =F9+G9 -> 135.26 | F9: 115.29 | G9: 19.97
A10: 新抚区 | B10: 21.68 | C10: 11.68 | D10: 10.00 | E10: 20.64 | F10: 10.70 | G10: 9.94
A11: 东洲区 | B11: 42.82 | C11: =36.73-0.01 -> 36.72 | D11: 6.10 | E11: 38.45 | F11: =32.36-0.01 -> 32.35 | G11: =6.09+0.01 -> 6.10
A12: 望花区 | B12: 5.50 | C12: 1.80 | D12: 3.70 | E12: 5.07 | F12: 1.38 | G12: 3.69
A13: 顺城区 | B13: 7.14 | C13: 5.64 | D13: 1.50 | E13: 5.44 | F13: 3.94 | G13: 1.50
A14: 抚顺县 | B14: 11.86 | C14: 7.76 | D14: 4.10 | E14: 10.64 | F14: 6.54 | G14: 4.10
A15: 新宾满族自治县 | B15: 12.97 | C15: 6.22 | D15: 6.75 | E15: 10.64 | F15: 5.03 | G15: 5.61
A16: 清原满族自治县 | B16: 10.40 | C16: 7.20 | D16: 3.20 | E16: 10.10 | F16: 7.20 | G16: 2.90
M17: 93015.13

Sheet 表1-2 地方政府一般债务余额情况表
A1: 表1-2
A2: 抚顺市2022年和2023年地方政府一般债务余额情况表
C3: 单位：亿元
A4: 项 目 | B4: 预算数 | C4: 执行数
A5: 一、2021年末地方政府一般债务余额实际数 | C5: 337.71
A6: 二、2022年末地方政府一般债务余额限额 | C6: ='表1-1 政府债务限额及余额预算情况表'!C7 -> 359.18
A7: 三、2022年地方政府一般债务发行额 | C7: 61.50
A8: 中央转贷地方的国际金融组织和外国政府贷款 | C8: 0.00
A9: 2022年地方政府一般债券发行额 | C9: 61.50
A10: 四、2022年地方政府一般债务还本额 | C10: =60.4825-0.02 -> 60.46
A11: 五、2022年末地方政府一般债务余额预计执行数 | C11: ='表1-1 政府债务限额及余额预算情况表'!F7 -> 338.75
A12: 六、2023年地方财政赤字
A13: 七、2023年地方政府一般债务余额限额 | B13: =C6 -> 359.18

Sheet 表1-3 地方政府专项债务余额情况表
A1: 表1-3
A2: 抚顺市2022年和2023年地方政府专项债务余额情况表
C3: 单位：亿元
A4: 项 目 | B4: 预算数 | C4: 执行数
A5: 一、2021年末地方政府专项债务余额实际数 | C5: 64.47 | D5: 1
A6: 二、2022年末地方政府专项债务余额限额 | C6: ='表1-1 政府债务限额及余额预算情况表'!D7 -> 78.64 | D6: 2
A7: 三、2022年地方政府专项债务发行额 | C7: 17.05 | D7: 3
A8: 四、2022年地方政府专项债务还本额 | C8: 4.66 | D8: 4
A9: 五、2022年末地方政府专项债务余额预计执行数 | C9: ='表1-1 政府债务限额及余额预算情况表'!G7 -> 76.86 | D9: 5
A10: 六、2023年地方政府专项债务新增限额 | B10: 0.00 | D10: 6
A11: 七、2023年末地方政府专项债务余额限额 | B11: =C6 -> 78.64 | D11: 7

Sheet 表1-4 地方政府债券发行及还本付息情况表
A1: 表1-4
A2: 抚顺市地方政府债券发行及还本付息情况表
D3: 单位：亿元
A4: 项 目 | B4: 公式 | C4: 本地区 | D4: 本级
A5: 一、2022年发行预计执行数 | B5: A=B+D | C5: =C6+C8 -> 78.55 | D5: =D6+D8 -> 39.23
A6: （一）一般债券 | B6: B | C6: 61.50 | D6: 32.89
A7: 其中：再融资债券 | B7: C | C7: 60.12 | D7: 32.89
A8: （二）专项债券 | B8: D | C8: 17.05 | D8: 6.34
A9: 其中：再融资债券 | B9: E | C9: 4.66
A10: 二、2022年还本预计执行数 | B10: F=G+H | C10: =C11+C12 -> 64.78 | D10: =D11+D12 -> 32.90
A11: （一）一般债券 | B11: G | C11: 60.12 | D11: 32.90
A12: （二）专项债券 | B12: H | C12: 4.66 | D12: 0.00
A13: 三、2022年付息预计执行数 | B13: I=J+K | C13: =C14+C15 -> 14.40 | D13: =D14+D15 -> 6.25
A14: （一）一般债券 | B14: J | C14: 11.86 | D14: 5.56
A15: （二）专项债券 | B15: K | C15: 2.54 | D15: 0.69
A16: 四、2023年还本预算数 | B16: L=M+O | C16: =C17+C20 -> 71.48 | D16: =D17+D20 -> 23.91
A17: （一）一般债券 | B17: M | C17: =C18+C19 -> 64.96 | D17: =D18+D19 -> 22.82
A18: 其中：再融资 | C18: 64.95 | D18: 22.82
A19: 财政预算安排 | B19: N | C19: 0.01 | D19: 0.00
A20: （二）专项债券 | B20: O | C20: =C21+C22 -> 6.52 | D20: =D21+D22 -> 1.09
A21: 其中：再融资 | C21: 6.51 | D21: 1.08
A22: 财政预算安排 | B22: P | C22: 0.01 | D22: 0.01
A23: 五、2023年付息预算数 | B23: Q=R+S | C23: =C24+C25 -> 9.90 | D23: =D24+D25 -> 6.39
A24: （一）一般债券 | B24: R | C24: 7.81 | D24: 5.44
A25: （二）专项债券 | B25: S | C25: 2.09 | D25: 0.95
